Workbook

Sheet Расчет
T2: пролёт | U2: h балки | X2: Тип | Y2: °t вн | Z2: ГСОП | AB2: =CONCATENATE("Толщина утеплителя кровли и стен определена согласно требованиям СНиП 23-02-2003 как для ",X4," помещений с внутренней температурой + ",Y3," °С, для нормальных условий влажности. При изменении температурно-влажностных условий внутренней среды помещения толщина утеплителя и стоимость ограждающих конструкций подлежат уточнению.") ->  | AU2: Окна_нащельники | AW2: $ | AX2: 50 | AY2: =2.36/(3) -> 0.7866666667 | AZ2: 50 | BA2: =(AZ2+40*2)*1.5/10^6*7850 -> 1.53075 | BC2: Двери_нащельник | BE2: 50 | BF2: 0.74 | BH2: Ворота_нащельник | BI2: $
T3: 6 | U3: 1.2 | X3: =N4 -> 0 | Y3: =VLOOKUP(X3,Табл!#REF!,2,0) ->  | Z3: =(Y3-VLOOKUP(N5,Табл!#REF!,5,0))*VLOOKUP(N5,Табл!#REF!,4,0) ->  | AA3: =IF(EVEN(ROUNDUP(Z3/1000,0)-2)*1000<12000,MAX(EVEN(ROUNDUP(Z3/1000,0)-2)*1000,0),"STOP") ->  | AH3: =IF(AJ3>=AG6,1,0)+AK2 ->  | AI3: СПО 4М1-16-4М1 | AJ3: 0.32 | AK3: 1 кам | AL3: 0 | AP3: =IF(AR3>=AO6,1,0)+AS2 ->  | AQ3: СПО 4М1-16-4М1 | AR3: 0.32 | AS3: 1 кам | AT3: 0 | AV3: Цена 1 кг нащ | AW3: =533/5.5/Курс -> 3.028409091 | AX3: 80 | AY3: =2.36/(3) -> 0.7866666667 | AZ3: 80 | BA3: 1.884 | BC3: Цена 1 кг нащ | BD3: =AW3 -> 3.028409091 | BE3: 80 | BF3: 0.91 | BH3: Цена 1 кг нащ | BI3: =AW3 -> 3.028409091
T4: 21 | U4: 1.3 | X4: =IF(X3=1,"общественных",IF(X3=2,"производственных",IF(X3=3,"складских","###"))) -> ### | AH4: =IF(AJ4>=AG6,1,0)+AH3 ->  | AI4: СПД 4М-10-4М-10-4М | AJ4: =IF(N20,0.47,0) -> 0 | AK4: 2 кам | AL4: 18 | AP4: =IF(AR4>=AO6,1,0)+AP3 ->  | AQ4: СПД 4М-10-4М-10-4М | AR4: =IF(N20,0.47,0) -> 0 | AS4: 2 кам | AT4: 18 | AV4: Цена 1 кг гн. Проф | AW4: =Табл!D27/Курс/1000 -> 2.0125 | AX4: 100 | AY4: =2.46/(3) -> 0.82 | AZ4: 100 | BA4: 2.1195 | BC4: Цена 1 кг гн. Проф | BD4: =Табл!D27/Курс/1000 -> 2.0125 | BE4: 100 | BF4: 1.02 | BH4: Цена 1 кг гн. Проф | BI4: =Табл!D27/Курс/1000 -> 2.0125
T5: 24 | U5: 1.4 | Z5: R, м2*°С/Вт | AH5: =IF(AJ5>=AG6,1,0)+AH4 ->  | AI5: 4М1-16-И4 | AJ5: 0.59 | AK5: 1 кам ЭС | AL5: 17 | AP5: =IF(AR5>=AO6,1,0)+AP4 ->  | AQ5: 4М1-16-И4 | AR5: 0.59 | AS5: 1 кам ЭС | AT5: 17 | AV5: Саморез гн. проф | AW5: 0.1215 | AX5: 120 | AY5: =2.59/(3) -> 0.8633333333 | AZ5: 120 | BA5: 2.355 | BC5: Саморез гн. проф | BD5: 0.1315 | BE5: 120 | BF5: 1.13 | BH5: Саморез гн. проф | BI5: 0.1315
T6: 27 | U6: 1.4 | V6: ПРОВЕРКА!!! У Кожина В.И. дата | Y6: Кровля | Z6: =IF(X3=1,VLOOKUP(AA3,Табл!B103:E109,3,0),VLOOKUP(AA3,Табл!B111:E117,3,0)) ->  | AA6: =ROUNDUP(Z6+(Z3-AA3)/2000*(Z7-Z6),3) ->  | AB6: Стены | AC6: =IF(X3=1,VLOOKUP(AA3,Табл!B103:E109,2,0),VLOOKUP(AA3,Табл!B111:E117,2,0)) ->  | AD6: =ROUNDUP(AC6+(Z3-AA3)/2000*(AC7-AC6),3) ->  | AE6: Окна | AF6: =IF(X3=1,VLOOKUP(AA3,Табл!B103:E109,4,0),VLOOKUP(AA3,Табл!B111:E117,4,0)) ->  | AG6: =ROUNDUP(AF6+(Z3-AA3)/2000*(AF7-AF6),3) ->  | AH6: =IF(AJ6>=AG6,1,0)+AH5 ->  | AI6: 4М1-10-4М1-10-И4 | AJ6: 0.64 | AK6: 2 кам ЭС | AL6: 30 | AM6: Фонарь | AN6: =IF(X3=1,VLOOKUP(AA3,Табл!B103:E109,5,0),VLOOKUP(AA3,Табл!B111:E117,5,0)) ->  | AO6: =ROUNDUP(AN6+(Z3-AA3)/2000*(AN7-AN6),3) ->  | AP6: =IF(AR6>=AO6,1,0)+AP5 ->  | AQ6: 4М1-10-4М1-10-И4 | AR6: 0.64 | AS6: 2 кам ЭС | AT6: 30 | AV6: Саморез нащельн. | AW6: 0.1215 | AX6: 150 | AY6: =2.8/(3) -> 0.9333333333 | AZ6: 150 | BA6: 2.70825 | BC6: Саморез нащельн. | BD6: 0.1215 | BE6: 150 | BF6: 1.29 | BH6: Саморез нащельн. | BI6: 0.1215
T7: 30 | U7: 1.5 | V7: Междуэтажка | X7: S, м2 | Y7: М уд | Z7: =IF(X3=1,VLOOKUP(AA3+2000,Табл!B103:E109,3,0),VLOOKUP(AA3+2000,Табл!B111:E117,3,0)) ->  | AC7: =IF(X3=1,VLOOKUP(AA3+2000,Табл!B103:E109,2,0),VLOOKUP(AA3+2000,Табл!B111:E117,2,0)) ->  | AF7: =IF(X3=1,VLOOKUP(AA3+2000,Табл!B103:E109,4,0),VLOOKUP(AA3+2000,Табл!B111:E117,4,0)) ->  | AH7: =IF(AJ7>=AG6,1,0)+AH6 ->  | AI7: 4М1-Ar10-4М1-Ar10-И4 | AJ7: 0.71 | AK7: 2 кам Ar | AL7: 46 | AN7: =IF(X3=1,VLOOKUP(AA3+2000,Табл!B103:E109,5,0),VLOOKUP(AA3+2000,Табл!B111:E117,5,0)) ->  | AP7: =IF(AR7>=AO6,1,0)+AP6 ->  | AQ7: 4М1-Ar10-4М1-Ar10-И4 | AR7: 0.71 | AS7: 2 кам Ar | AT7: 46 | AV7: Саморез окон. проф | AW7: =1.8/Курс -> 0.05625 | AX7: 180 | AY7: =3.03/(3) -> 1.01 | AZ7: 180 | BA7: 3.0615 | BE7: 180 | BF7: 1.47
T8: 36 | U8: 1.6 | AK8: 1стекло | AL8: -10 | AS8: 1стекло | AT8: -10 | AX8: 200 | AY8: =3.18/(3) -> 1.06 | AZ8: 200 | BA8: 3.297 | BE8: 200 | BF8: 1.57
T9: 40 | U9: 1.6 | AX9: 250 | AY9: =3.58/(3) -> 1.193333333 | AZ9: 250 | BA9: 3.88575 | BE9: 250 | BF9: 1.84
A10: III | B10: Стены | E10: Hцок= | F10: =IF(O2="Ориентировочный расчёт. СПАЙДЕР.",0,0.3) -> 0.3 | H10: Ветер - | I10: I | J10: м2 | K10: Ц(р) | L10: С(руб)
A11: =IF(O2="Ориентировочный расчёт. СПАЙДЕР.",0.314,IF(Ш/пролёт>=21,VLOOKUP(Ш/пролёт,$T$3:$U$9,2,1),1.2)) ->  | B11: =VLOOKUP(C11,Данные!$A$32:$D$53,3,0) -> 100 | C11: ВС100 | G11: =IF(парапет>0,"вкл парапет","") ->  | H11: TRUE | I11: =IF(H11,"уч. проемов","без учета") -> уч. проемов | J11: =(Ш+Д+2.4)*2*(В+балка+парапет)+IF(AND(#REF!=2,парапет=0),(Ш/2*Уклон+1.2*Уклон)*(Ш+1.2),0)+IF(AND(#REF!=1,парапет=0),(Ш*Уклон+1.2*Уклон)*(Ш+1.2)+Ш*Уклон*(Д+1.2),0)-(Ш+Д)*2*цоколь-IF(H11,A66+A95+A137+A190+A199+A208+A215+A242,0) ->  | K11: =VLOOKUP(C11,Данные!A$32:B$53,2,0) -> 1582 | L11: =ROUND(J11*K11,$N$1) -> 
A12: 0 | B12: =VLOOKUP(C12,Данные!$A$32:$D$53,3,0) -> 50 | C12: ВС18 | K12: =VLOOKUP(C12,Данные!A$32:B$53,2,0) -> 444 | L12: =ROUND(J12*K12,$N$1) -> 0
A13: 0 | B13: =VLOOKUP(C13,Данные!$A$32:$D$53,3,0) -> 50 | C13: ВС18 | G13: фриз навеса / козырька h= | H13: 0 | J13: =каркас_фриза*фриз ->  | K13: =VLOOKUP(C13,Данные!A$32:B$53,2,0) -> 444 | L13: =ROUND(J13*K13,$N$1) -> 
A14: TRUE | B14: =IF(Раскладка,"Раскладка вертикальная","Раскладка горизонтальная") -> Раскладка вертикальная | F14: =IF(AND(шаг_кол>6,B14="Раскладка горизонтальная"),"Проверь шаг колонн!!!","") ->  | L14: Стоимость для базовых цветов.
A15: =IF(#REF!=0,0.8,IF(A18,IF(#REF!=1,Ш/10,Ш/20),0)) -> 
A17: =VLOOKUP(C11,Данные!$A$32:$F$53,6,0) -> 1.19 | B17: Всего стоимость ограждающих конструкций | L17: =SUM(L10:L14) -> 
A18: FALSE
B19: Всего стоимость каркаса и ограждающих конструкций | L19: =#REF!+L17 -> 
A21: IV | B21: Окна | D21: шт | E21: профиль | F21: стеклопакет | G21: тип | H21: размер (ш х в) | J21: м2 | K21: Ц(р/м2) | L21: С(руб)
E22: НЕТ /Не поставляются/
A23: =IF(Раскладка,IF(H23>шир_пан,(ROUNDDOWN(H23/шир_пан,0)-1)*шир_пан*I23*D23,0),IF(I23>шир_пан,(ROUNDDOWN(I23/шир_пан,0)-1)*шир_пан*H23*D23,0)) -> 0 | B23: =IF(D23>0,1,0) -> 0
A24: 0 | B24: =IF(D24>0,MAX(B23)+1,0) -> 0
A25: 0 | B25: =IF(D25>0,MAX(B$23:B24)+1,0) -> 0
A26: 0 | B26: =IF(D26>0,MAX(B$23:B25)+1,0) -> 0
A27: 0 | B27: =IF(D27>0,MAX(B$23:B26)+1,0) -> 0
A28: 0 | B28: =IF(D28>0,MAX(B$23:B27)+1,0) -> 0
A29: 0 | B29: =IF(D29>0,MAX(B$23:B28)+1,0) -> 0
A30: 0 | B30: =IF(D30>0,MAX(B$23:B29)+1,0) -> 0
A31: 0 | B31: =IF(D31>0,MAX(B$23:B30)+1,0) -> 0
A32: 0 | B32: =IF(D32>0,MAX(B$23:B31)+1,0) -> 0
A33: 0 | B33: =IF(D33>0,MAX(B$23:B32)+1,0) -> 0
A34: 0 | B34: =IF(D34>0,MAX(B$23:B33)+1,0) -> 0
A35: 0 | B35: =IF(D35>0,MAX(B$23:B34)+1,0) -> 0
A36: 0 | B36: =IF(D36>0,MAX(B$23:B35)+1,0) -> 0
A37: 0 | B37: =IF(D37>0,MAX(B$23:B36)+1,0) -> 0
A38: 0 | B38: =IF(D38>0,MAX(B$23:B37)+1,0) -> 0
A39: 0 | B39: =IF(D39>0,MAX(B$23:B38)+1,0) -> 0
A40: 0 | B40: =IF(D40>0,MAX(B$23:B39)+1,0) -> 0
A41: 0 | B41: =IF(D41>0,MAX(B$23:B40)+1,0) -> 0
B42: =IF(D42>0,MAX(B$23:B41)+1,0) -> 0
B43: =IF(D43>0,MAX(B$23:B42)+1,0) -> 0 | F43: 2 кам | J43: =D43*H43*I43 -> 0 | L43: =ROUND(J43*K43,$N$1) -> 0
B44: =IF(D44>0,MAX(B$23:B43)+1,0) -> 0 | F44: 1 кам ЭС | J44: 0 | L44: 0
B45: =IF(D45>0,MAX(B$23:B44)+1,0) -> 0 | F45: 2 кам ЭС | J45: 0 | L45: 0
B46: =IF(D46>0,MAX(B$23:B45)+1,0) -> 0 | F46: 2 кам Ar | J46: 0 | L46: 0
B47: =IF(D47>0,MAX(B$23:B46)+1,0) -> 0 | F47: 1стекло | J47: 0 | L47: 0
B48: =IF(D48>0,MAX(B$23:B47)+1,0) -> 0 | E48: Алюминий | F48: 2 кам | G48: глухие | I48: кв м 1 шт | J48: =D48*H48 -> 0 | L48: 0 | N48: Обрамление гн профилем | O48: Обрамление гн профилем + нащельники | P48: Нащельники | Q48: -
A49: =IF(Раскладка,IF(H49>шир_пан,(ROUNDDOWN(H49/шир_пан,0)-1)*шир_пан*I49*D49,0),IF(I49>шир_пан,(ROUNDDOWN(I49/шир_пан,0)-1)*шир_пан*H49*D49,0)) -> 0 | B49: =IF(D49>0,MAX(B$23:B48)+1,0) -> 0 | E49: Проём | F49: Обрамление гн профилем | H49: 1.2 | I49: 1.2 | J49: 0 | K49: =HLOOKUP(F49,$N$48:$Q$62,ROW()-MATCH("яя",N$1:N49,1)+1,0) -> 550.4 | L49: 0 | N49: =(ROUND(((H49+I49+0.06)*2*VLOOKUP(толщ_ут_стен,$AZ$2:$BA$9,2)*$AW$4+ROUNDUP((H49+I49)*2/4.8,0)*0.18*$AW$4+ROUNDUP((H49/0.5+1)*4+(I49/0.5+1)*4,0)*$AW$5)/(H49*I49),1))*Курс -> 550.4 | O49: =(ROUND(IF(H49>6,((6+I49+0.3)*4*VLOOKUP(толщ_ут_стен,$AX$2:$AY$9,2)*$AW$3+(6+0.15)*0.77*$AW$3+(6+I49+0.06)*2*VLOOKUP(толщ_ут_стен,$AZ$2:$BA$9,2)*$AW$4+ROUNDUP((6+I49)*2/4.8,0)*0.18*$AW$4+ROUNDUP((6/0.5+1)*4+(I49/0.5+1)*4,0)*$AW$5+(ROUNDUP((6/0.3+1)*4+(I49/0.3+1)*4,0)*2+ROUNDUP(6/0.3+1,0))*$AW$6+ROUNDUP((6/0.5+1)*2+(I49/0.5+1)*2,0)*$AW$7)/(6*I49),((H49+I49+0.3)*4*VLOOKUP(толщ_ут_стен,$AX$2:$AY$9,2)*$AW$3+(H49+0.15)*0.77*$AW$3+(H49+I49+0.06)*2*VLOOKUP(толщ_ут_стен,$AZ$2:$BA$9,2)*$AW$4+ROUNDUP((H49+I49)*2/4.8,0)*0.18*$AW$4+ROUNDUP((H49/0.5+1)*4+(I49/0.5+1)*4,0)*$AW$5+(ROUNDUP((H49/0.3+1)*4+(I49/0.3+1)*4,0)*2+ROUNDUP(H49/0.3+1,0))*$AW$6+ROUNDUP((H49/0.5+1)*2+(I49/0.5+1)*2,0)*$AW$7)/(H49*I49)),1))*Курс -> 1462.4 | P49: =O49-N49 -> 912 | Q49: 0
A50: =IF(Раскладка,IF(H50>шир_пан,(ROUNDDOWN(H50/шир_пан,0)-1)*шир_пан*I50*D50,0),IF(I50>шир_пан,(ROUNDDOWN(I50/шир_пан,0)-1)*шир_пан*H50*D50,0)) -> 0 | B50: =IF(D50>0,MAX(B$23:B49)+1,0) -> 0 | E50: Проём | F50: Обрамление гн профилем | H50: 2.2 | I50: 1.3 | J50: 0 | K50: =HLOOKUP(F50,$N$48:$Q$62,ROW()-MATCH("яя",N$1:N50,1)+1,0) -> 396.8 | L50: 0 | N50: 396.8 | O50: 1052.8 | P50: =O50-N50 -> 656 | Q50: 0
A51: =IF(Раскладка,IF(H51>шир_пан,(ROUNDDOWN(H51/шир_пан,0)-1)*шир_пан*I51*D51,0),IF(I51>шир_пан,(ROUNDDOWN(I51/шир_пан,0)-1)*шир_пан*H51*D51,0)) -> 0 | B51: =IF(D51>0,MAX(B$23:B50)+1,0) -> 0 | E51: Проём | F51: Обрамление гн профилем | H51: 3.2 | I51: 1.4 | J51: 0 | K51: =HLOOKUP(F51,$N$48:$Q$62,ROW()-MATCH("яя",N$1:N51,1)+1,0) -> 329.6 | L51: 0 | N51: 329.6 | O51: 873.6 | P51: =O51-N51 -> 544 | Q51: 0
A52: =IF(Раскладка,IF(H52>шир_пан,(ROUNDDOWN(H52/шир_пан,0)-1)*шир_пан*I52*D52,0),IF(I52>шир_пан,(ROUNDDOWN(I52/шир_пан,0)-1)*шир_пан*H52*D52,0)) -> 0 | B52: =IF(D52>0,MAX(B$23:B51)+1,0) -> 0 | E52: Проём | F52: Обрамление гн профилем | H52: 4.2 | I52: 1.5 | J52: 0 | K52: =HLOOKUP(F52,$N$48:$Q$62,ROW()-MATCH("яя",N$1:N52,1)+1,0) -> 288 | L52: 0 | N52: 288 | O52: 764.8 | P52: 476.8 | Q52: 0
A53: =IF(Раскладка,IF(H53>шир_пан,(ROUNDDOWN(H53/шир_пан,0)-1)*шир_пан*I53*D53,0),IF(I53>шир_пан,(ROUNDDOWN(I53/шир_пан,0)-1)*шир_пан*H53*D53,0)) -> 0 | B53: =IF(D53>0,MAX(B$23:B52)+1,0) -> 0 | E53: Проём | F53: Обрамление гн профилем | H53: 5.2 | I53: 1.6 | J53: =D53*H53*I53 -> 0 | K53: =HLOOKUP(F53,$N$48:$Q$62,ROW()-MATCH("яя",N$1:N53,1)+1,0) -> 259.2 | L53: 0 | N53: 259.2 | O53: 684.8 | P53: 425.6 | Q53: 0
A54: 0 | B54: =IF(D54>0,MAX(B$23:B53)+1,0) -> 0 | E54: Проём | F54: Обрамление гн профилем | H54: 6.2 | I54: 1.47 | J54: 0 | K54: =HLOOKUP(F54,$N$48:$Q$62,ROW()-MATCH("яя",N$1:N54,1)+1,0) -> 265.6 | L54: 0 | N54: 265.6 | O54: 710.4 | P54: 444.8 | Q54: 0
A55: 0 | B55: =IF(D55>0,MAX(B$23:B54)+1,0) -> 0 | E55: Проём | F55: Обрамление гн профилем | H55: 7.2 | I55: 1.59 | J55: 0 | K55: =HLOOKUP(F55,$N$48:$Q$62,ROW()-MATCH("яя",N$1:N55,1)+1,0) -> 243.2 | L55: 0 | N55: 243.2 | O55: 668.8 | P55: 425.6 | Q55: 0
A56: 0 | B56: =IF(D56>0,MAX(B$23:B55)+1,0) -> 0 | E56: Проём | F56: Обрамление гн профилем | H56: 8.2 | I56: 1.8 | J56: 0 | K56: =HLOOKUP(F56,$N$48:$Q$62,ROW()-MATCH("яя",N$1:N56,1)+1,0) -> 214.4 | L56: 0 | N56: 214.4 | O56: 604.8 | P56: 390.4 | Q56: 0
A57: 0 | B57: =IF(D57>0,MAX(B$23:B56)+1,0) -> 0 | E57: Проём | F57: Обрамление гн профилем | H57: 9.2 | I57: 1.9 | J57: 0 | K57: =HLOOKUP(F57,$N$48:$Q$62,ROW()-MATCH("яя",N$1:N57,1)+1,0) -> 198.4 | L57: 0 | N57: 198.4 | O57: 579.2 | P57: 380.8 | Q57: 0
A58: 0 | B58: =IF(D58>0,MAX(B$23:B57)+1,0) -> 0 | E58: Проём | F58: Обрамление гн профилем | H58: 10.2 | I58: 1.12 | J58: 0 | K58: =HLOOKUP(F58,$N$48:$Q$62,ROW()-MATCH("яя",N$1:N58,1)+1,0) -> 310.4 | L58: 0 | N58: 310.4 | O58: 892.8 | P58: 582.4 | Q58: 0
A59: 0 | B59: =IF(D59>0,MAX(B$23:B58)+1,0) -> 0 | E59: Проём | F59: Обрамление гн профилем | H59: 11.2 | I59: 1.125 | J59: 0 | K59: =HLOOKUP(F59,$N$48:$Q$62,ROW()-MATCH("яя",N$1:N59,1)+1,0) -> 307.2 | L59: 0 | N59: 307.2 | O59: 889.6 | P59: 582.4 | Q59: 0
A60: 0 | B60: =IF(D60>0,MAX(B$23:B59)+1,0) -> 0 | E60: Проём | F60: Обрамление гн профилем | H60: 12.2 | I60: 1.565 | J60: 0 | K60: =HLOOKUP(F60,$N$48:$Q$62,ROW()-MATCH("яя",N$1:N60,1)+1,0) -> 224 | L60: 0 | N60: 224 | O60: 675.2 | P60: 451.2 | Q60: 0
A61: 0 | B61: =IF(D61>0,MAX(B$23:B60)+1,0) -> 0 | E61: Проём | F61: Обрамление гн профилем | H61: 13.2 | I61: 1.258 | J61: 0 | K61: =HLOOKUP(F61,$N$48:$Q$62,ROW()-MATCH("яя",N$1:N61,1)+1,0) -> 272 | L61: 0 | N61: 272 | O61: 812.8 | P61: 540.8 | Q61: 0
A62: =IF(Раскладка,IF(H62>шир_пан,(ROUNDDOWN(H62/шир_пан,0)-1)*шир_пан*I62*D62,0),IF(I62>шир_пан,(ROUNDDOWN(I62/шир_пан,0)-1)*шир_пан*H62*D62,0)) -> 0 | B62: =IF(D62>0,MAX(B$23:B61)+1,0) -> 0 | E62: Проём | F62: Обрамление гн профилем | H62: 14.2 | I62: 1.32548 | J62: 0 | K62: =HLOOKUP(F62,$N$48:$Q$62,ROW()-MATCH("яя",N$1:N62,1)+1,0) -> 259.2 | L62: 0 | N62: 259.2 | O62: 777.6 | P62: 518.4 | Q62: 0
B63: Тонировка | J63: =SUM(J23:J41) -> 0 | L63: 0
E64: Механизмы открывания окон с пола | K64: =200*Курс -> 6400 | L64: 0
B65: Нащельники и доборные элементы окон | J65: =SUM(J22:J41) -> 0 | K65: =L65/J65/Курс ->  | L65: =ROUND(SUMPRODUCT(C23:C41,J23:J41)*Курс,$N$1) -> 0
A66: =SUM(A23:A65) -> 0 | B66: =IF(SUM(D23:D41)>0,"Размер секции окон:","") ->  | I66: Итого: | J66: =SUM(J23:J62) -> 0 | L66: =SUM(L22:L65) -> 0
B67: =IF(D23>0,CONCATENATE("п. ",B23,") ", N23," х ",O23,"(h) м"),"") -> 
B97: =IF(D90>0,CONCATENATE("п. ",B90,") ", N90," х ",O90,"(h) м"),"") -> 
B138: =IF(D100>0,CONCATENATE("п. ",B100,") ",N100,"х",O100, "(h) м"),"") -> 
B139: =IF(D101>0,CONCATENATE("п. ",B101,") - ",N101,"х",O101, "(h) м"),"") -> 
B140: =IF(D102>0,CONCATENATE("п. ",B102,") - ",N102,"х",O102, "(h) м"),"") -> 
B141: =IF(D103>0,CONCATENATE("п. ",B103,") - ",N103,"х",O103, "(h) м"),"") -> 
B142: =IF(D104>0,CONCATENATE("п. ",B104,") - ",N104,"х",O104, "(h) м"),"") -> 
B143: =IF(D105>0,CONCATENATE("п. ",B105,") - ",N105,"х",O105, "(h) м"),"") -> 
P262: =L262*Процентъ ->  | Q262: =#REF!*Процентъ2 ->  | R262: =#REF!*Процентъ3 -> 
D263: курс $ | E263: 32 | J263: =L262/Курс -> 0 | L263: =L262/(Площадь+ПлощадьА+Sнавеса+Sкозырька)/Курс ->  | P263: =#REF!-P262 ->  | Q263: =#REF!-Q262 ->  | R263: =#REF!-R262 -> 
D264: курс € | E264: 44 | J264: =L262/курс_евро -> 0 | L264: =L262/(Площадь+ПлощадьА+Sнавеса+Sкозырька)/курс_евро -> 
A280: =IF(OR(O2="Ориентировочный расчёт. СПАЙДЕР.",O2="Ориентировочный расчёт. КОНДОР."),A66+A95+A137+A190+A199+A208+A215+A242,0) -> 0
O300: TRUE
O301: TRUE
O302: TRUE
O303: TRUE
O304: TRUE
O310: TRUE
O311: TRUE

Sheet Табл
D19: 70900 | E19: 73700
D20: 72800 | E20: 75700
D21: 89700 | E21: 95700
D22: 76000 | E22: 82900
D23: 73800 | E23: 81800
D24: 113300 | E24: 117500
D25: 85800 | E25: 93000
D26: 77000 | E26: 85000
D27: 64400
D28: 98900
D29: 89200
D30: 80800
D31: 79800 | E31: 82700
D32: 100100 | E32: 106400
D33: 83200 | E33: 86000
B39: Каркас
B40: Фриза | C40: 25
B41: Тамбура | C41: 50
B42: Подвесного тотолка | C42: 15
B43: Светоовой фонарь | C43: 65
C75: Rкг/кв м перекр | E75: t вн °С
A77: Автоцентр
A78: Общежитие
A79: АБК | B79: 1 | C79: 200 | D79: 2 кам | E79: 20
A80: Ангар | B80: 3 | C80: 300 | D80: 1 кам | E80: 12
A81: Вышка | B81: ? | C81: 200 | D81: 1 кам | E81: 0
A82: Гараж | B82: 2 | C82: 300 | D82: 1 кам | E82: 16
A83: Каркас | B83: ? | C83: 300 | D83: 1 кам | E83: ?
A84: Котельная | B84: 2 | C84: 300 | D84: 1 кам | E84: 16
A85: Мойка | B85: 2 | C85: 300 | D85: 1 кам | E85: 16
A86: Навес | B86: ? | C86: 200 | D86: 1 кам | E86: ?
A87: Общественное | B87: 1 | C87: 400 | D87: 2 кам | E87: 20
A88: Огр. конструкции | B88: ? | C88: 300 | D88: ? | E88: ?
A89: Производственное | B89: 2 | C89: 300 | D89: 1 кам | E89: 16
A90: Птичник | B90: 2 | C90: 200 | D90: 1 кам | E90: 16
A91: Склад | B91: 3 | C91: 300 | D91: 1 кам | E91: 12
A92: Спортивное | B92: 1 | C92: 400 | D92: 2 кам | E92: 20
A93: СТО | B93: 2 | C93: 300 | D93: 1 кам | E93: 16
A94: Стоянка | B94: 3 | C94: 300 | D94: 1 кам | E94: 12
A95: Торговое | B95: 1 | C95: 400 | D95: 2 кам | E95: 20
A96: Холодильник | B96: ? | C96: 300 | D96: 1 кам | E96: ?
A98: Здания и помещения | B98: ГСОП | C98: Приведенное сопротивление теплопередаче
C99: ограждающих конструкций не менее
B100: °С*сут | C100: Rтро, м2*град/Вт
C102: стен | D102: кровля | E102: окна
A103: Общественные, | B103: 0 | C103: 1.2 | D103: 1.6 | E103: 0.2
A104: АБК | B104: 2000 | C104: 1.8 | D104: 2.4 | E104: 0.3
B105: 4000 | C105: 2.4 | D105: 3.2 | E105: 0.4
B106: 6000 | C106: 3 | D106: 4 | E106: 0.5
B107: 8000 | C107: 3.6 | D107: 4.8 | E107: 0.6
B108: 10000 | C108: 4.2 | D108: 5.6 | E108: 0.7
B109: 12000 | C109: 4.8 | D109: 6.4 | E109: 0.8
A111: Производственные, | B111: 0 | C111: 1 | D111: 1.5 | E111: 0.2
A112: склады | B112: 2000 | C112: 1.4 | D112: 2 | E112: 0.25
B113: 4000 | C113: 1.8 | D113: 2.5 | E113: 0.3
B114: 6000 | C114: 2.2 | D114: 3 | E114: 0.35
B115: 8000 | C115: 2.6 | D115: 3.5 | E115: 0.4
B116: 10000 | C116: 3 | D116: 4 | E116: 0.45
B117: 12000 | C117: 3.4 | D117: 4.5 | E117: 0.5

Sheet Данные
C1: толщина | D1: ВК | E1: ВКС | F1: ширина
A2: ВКС50 | B2: =IF(A2="ВК50",D2,E2)+(26+56) -> 1492 | C2: 50 | D2: 1510 | E2: 1410 | F2: 1
A3: ВКС80 | B3: =IF(A3="ВК80",D3,E3)+(28+72) -> 1620 | C3: 80 | D3: 1650 | E3: 1520 | F3: 1
A4: ВКС100 | B4: =IF(A4="ВК100",D4,E4)+(29+83) -> 1752 | C4: 100 | D4: 1790 | E4: 1640 | F4: 1 | G4: кровля | H4: =I4-J4 -> 87 | I4: 149 | J4: 62
A5: ВКС120 | B5: =IF(A5="ВК120",D5,E5)+(30+125) -> 1875 | C5: 120 | D5: 1880 | E5: 1720 | F5: 1 | G5: стена | H5: =I5-J5 -> 92.2408457 | I5: 158 | J5: =J4/A54*B54 -> 65.7591543
A6: ВКС150 | B6: =IF(A6="ВК150",D6,E6)+(32+143) -> 2015 | C6: 150 | D6: 2030 | E6: 1840 | F6: 1
A7: ВКС180 | B7: =IF(A7="ВК180",D7,E7)+(34+169) -> 2183 | C7: 180 | D7: 2200 | E7: 1980 | F7: 1
A8: ВКС200 | B8: =IF(A8="ВК200",D8,E8)+(35+169) -> 2274 | C8: 200 | D8: 2310 | E8: 2070 | F8: 1
A9: ВКС230 | B9: =IF(A9="ВК230",D9,E9)+(41+169) -> 2390 | C9: 230 | D9: 2440 | E9: 2180 | F9: 1
A10: ВКС250 | B10: =IF(A10="ВК250",D10,E10)+(41+169) -> 2470 | C10: 250 | D10: 2540 | E10: 2260 | F10: 1 | M10: Гориз. раскладка
A11: ВН45 | B11: =ВН45+(13+42) -> 475 | C11: 50 | F11: 0.9 | M11: 2.5
A12: ВН45- МВУ100 -ВС18 | B12: =B14-J4 -> 1262 | C12: 100 | F12: 0.9 | M12: Т153-850-0,8
A13: ВН45- МВУ100-Al | B13: =B15-J4 -> 705 | C13: 100 | F13: 0.9 | M13: Т153-850-0,8
A14: ВН45- МВУ150 -ВС18 | B14: 1324 | C14: 150 | F14: 0.9 | M14: Т153-850-1,0
A15: ВН45- МВУ150-Al | B15: 767 | C15: 150 | F15: 0.9 | M15: Т153-850-1,2
A16: ВН45- МВУ200 -ВС18 | B16: =B14+J4 -> 1386 | C16: 200 | F16: 0.9
A17: ВН45- МВУ200-Al | B17: =B15+J4 -> 829 | C17: 200 | F17: 0.9
A18: ВН45- МВУ250 -ВС18 | B18: =B14+J4*2 -> 1448 | C18: 250 | F18: 0.9
A19: ВН45- МВУ250-Al | B19: =B15+J4*2 -> 891 | C19: 250 | F19: 0.9
A20: ВН45- МВУ50 -ВС18 | B20: =B14-I4-J4+H4 -> 1200 | C20: 50 | F20: 0.9
A21: ВН45- МВУ50-Al | B21: =B15-I4-J4+H4*A54 -> 649.5915168 | C21: 50 | D21: протан | E21: техно-ль | F21: 0.9
A22: Мембранная утепл. 100мм (Протан/Rockwool) | B22: =IF(A22="Мембранная утепл. 100мм (Протан/Rockwool)",D22,E22) -> 1875 | C22: 100 | D22: 1875 | E22: 1830 | F22: 0.845
A23: Мембранная утепл. 120мм (Протан/Rockwool) | B23: =IF(A23="Мембранная утепл. 120мм (Протан/Rockwool)",D23,E23) -> 1973 | C23: 120 | D23: 1973 | E23: 1917 | F23: 0.845
A24: Мембранная утепл. 150мм (Протан/Rockwool) | B24: =IF(A24="Мембранная утепл. 150мм (Протан/Rockwool)",D24,E24) -> 2105 | C24: 150 | D24: 2105 | E24: 2030 | F24: 0.845
A25: Мембранная утепл. 180мм (Протан/Rockwool) | B25: =IF(A25="Мембранная утепл. 180мм (Протан/Rockwool)",D25,E25) -> 2248 | C25: 180 | D25: 2248 | E25: 2156 | F25: 0.845
A26: Мембранная утепл. 200мм (Протан/Rockwool) | B26: =IF(A26="Мембранная утепл. 200мм (Протан/Rockwool)",D26,E26) -> 2333 | C26: 200 | D26: 2333 | E26: 2229 | F26: 0.845
A27: Мембранная утепл. 220мм (Протан/Rockwool) | B27: =IF(A27="Мембранная утепл. 220мм (Протан/Rockwool)",D27,E27) -> 2509 | C27: 220 | D27: 2509 | E27: 2393 | F27: 0.845
A28: Мембранная утепл. 250мм (Протан/Rockwool) | B28: =IF(A28="Мембранная утепл. 250мм (Протан/Rockwool)",D28,E28) -> 2653 | C28: 250 | D28: 2653 | E28: 2520 | F28: 0.845
A29: Мембранная утепл. 40мм (Протан/Rockwool) | B29: =IF(A29="Мембранная утепл. 40мм (Протан/Rockwool)",D29,E29) -> 1619.75119 | C29: 50 | D29: 1619.75119 | E29: 1646.920256 | F29: 0.845
A30: НЕТ (не поставляется) | B30: 0 | C30: 50 | F30: 1 | G30: ВН45 | H30: ВС18
A31: светопрозрачная кровля | B31: 2700 | C31: 50 | F31: 0.9 | G31: 420 | H31: 343
A32: ВС50 | B32: =1220+(110+17) -> 1347 | C32: 50 | D32: 50 | F32: 1.19
A33: ВС80 | B33: =1350+(112+20) -> 1482 | C33: 80 | D33: 80 | F33: =IF(A33="ВС80",1.19,1.1) -> 1.19
A34: ВС100 | B34: =1440+(113+29) -> 1582 | C34: 100 | D34: 100 | F34: =IF(A34="ВС100",1.19,1.1) -> 1.19 | G34: Сейсмичности - НЕТ | J34: 1
A35: ВС120 | B35: =1520+(114+38) -> 1672 | C35: 120 | D35: 120 | F35: =IF(A35="ВС120",1.19,1.1) -> 1.19 | G35: Сейсмичность 7 баллов. | J35: 1.03
A36: ВС150 | B36: =1660+(115+38) -> 1813 | C36: 150 | D36: 150 | F36: =IF(A36="ВС150",1.19,1.1) -> 1.19 | G36: Сейсмичность 8 баллов. | J36: 1.05
A37: ВС180 | B37: =1790+(117+52) -> 1959 | C37: 180 | D37: 180 | F37: 1.19 | G37: Сейсмичность 9 баллов. | J37: 1.1
A38: ВС200 | B38: =1870+(118+52) -> 2040 | C38: 200 | D38: 200 | F38: 1.19 | G38: Сейсмичность10 баллов. | J38: =1.15 -> 1.15
A39: ВС230 | B39: =1980+(121+77) -> 2178 | C39: 230 | D39: 230 | F39: 1.19
A40: ВС250 | B40: =2090+(121+77) -> 2288 | C40: 250 | D40: 250 | F40: 1.19
A41: ВС18 | B41: =ВС18+(65+36) -> 444 | C41: 50 | D41: 20 | F41: 1.1
A42: ВС18 - МВУ100 -ВС18 | B42: =B47+ВС18+50 -> 1015 | C42: 100 | D42: 140 | F42: 1.1
A43: ВС18 - МВУ150 -ВС18 | B43: =B48+ВС18+50 -> 1080.759154 | C43: 150 | D43: 190 | F43: 1.1
A44: ВС18 - МВУ200 -ВС18 | B44: =B49+ВС18+50 -> 1146.518309 | C44: 200 | D44: 240 | F44: 1.1
A45: ВС18 - МВУ250 -ВС18 | B45: =B50+ВС18+50 -> 1212.277463 | C45: 250 | D45: 290 | F45: 1.1
A46: ВС18 - МВУ50 -ВС18 | B46: =B51+ВС18+50 -> 949.2408457 | C46: 50 | D46: 90 | F46: 1.1
A47: ВС18- МВУ100-Al | B47: 622 | C47: 100 | D47: 120 | F47: 1.1
A48: ВС18- МВУ150-Al | B48: =B47+J5 -> 687.7591543 | C48: 150 | D48: 170 | F48: 1.1
A49: ВС18- МВУ200-Al | B49: =B47+J5*2 -> 753.5183086 | C49: 200 | D49: 220 | F49: 1.1
A50: ВС18- МВУ250-Al | B50: =B47+J5*3 -> 819.2774629 | C50: 250 | D50: 270 | F50: 1.1
A51: ВС18- МВУ50-Al | B51: =B47-I5+H5 -> 556.2408457 | C51: 50 | D51: 70 | F51: 1.1
A52: Гипсокартон | B52: ? | C52: 50 | D52: 0 | F52: 1.19
A53: НЕТ (не поставляются) | B53: 0 | C53: 50 | D53: 0 | F53: 1.19
A54: 1.075764561 | B54: 1.140989803
